Cogmind - Beta 10.2 *** ADVENTURER MODE // 2022.01.08 @ 14:39:47 // Winter2019/RPGLIKE Player: Grommile Result: Self-destructed Performance ------------- Evolutions (2) 1000 Regions Visited (5) 1000 Robots Destroyed (48) 240 Value Destroyed (999) 999 Prototype IDs (4) 80 Alien Tech Used (0) 0 Bonus (40) 40 TOTAL SCORE: 3359 Bonus ------- Follower Combat Kills 40 Cogmind --------- Core Integrity 588/650 Matter 224/300 Energy 160/160 System Corruption 0% Temperature Cool (110) Movement Treading (160) Location -8/Materials Parts ------- > --- POWER (1) -------- Light Nuclear Core > --- PROPULSION (2) --- Light Treads Light Treads > --- UTILITY (4) ------ Signal Interpreter Improved Terrain Scanner > --- WEAPON (4) ------- Particle Gun Advanced Beam Cannon Advanced Beam Cannon Light Cannon > --- INVENTORY (4) ---- High-capacity Matter Pod (200) Structural Scanner Faulty Heavy Particle Gun Grenade Launcher Peak State ------------ > --- POWER ------------ Light Nuclear Core > --- PROPULSION ------- Light Treads Light Treads > --- UTILITY ---------- Signal Interpreter Improved Terrain Scanner > --- WEAPON ----------- Particle Gun Advanced Beam Cannon Advanced Beam Cannon Light Cannon > --- INVENTORY -------- High-capacity Matter Pod Structural Scanner Heavy Particle Gun Grenade Launcher [Rating: 17] Favorites ----------- Power Light Nuclear Core Engine Light Ion Engine Power Core Light Nuclear Core Propulsion Light Treads Treads Light Treads Utility Improved Terrain Scanner Device Improved Terrain Scanner Storage High-capacity Matter Pod Processor Signal Interpreter Weapon Light Cannon Energy Gun Medium Laser Energy Cannon Advanced Beam Cannon Ballistic Gun Light Assault Rifle Ballistic Cannon Light Cannon Launcher Grenade Launcher Build | -11 -10 -10 -10 -9 -8 ------- Run | Scr Mat Min Exi Min Mat Slots Evolved 7 | 3 . 2 . . 2 Power . | . . . . . . Propulsion 1 | 1 . . . . . Utility 3 | 1 . 2 . . . Weapon 3 | 1 . . . . 2 Parts Attached 18 | 7 5 1 1 2 2 Power 3 | 1 2 . . . . Engine 2 | 1 1 . . . . Core 1 | . 1 . . . . Reactor . | . . . . . . Propulsion 2 | 2 . . . . . Treads 2 | 2 . . . . . Leg . | . . . . . . Wheel . | . . . . . . Hover . | . . . . . . Flight . | . . . . . . Utility 4 | 2 1 . 1 . . Device 1 | 1 . . . . . Storage 1 | . . . 1 . . Processor 2 | 1 1 . . . . Hackware . | . . . . . . Protection . | . . . . . . Artifact . | . . . . . . Weapon 9 | 2 2 1 . 2 2 Energy Gun 2 | 1 . 1 . . . Energy Cannon 2 | . . . . . 2 Ballistic Gun 1 | 1 . . . . . Ballistic Cannon 3 | . 2 . . 1 . Launcher 1 | . . . . 1 . Special Weapon . | . . . . . . Impact Weapon . | . . . . . . Slashing Weapon . | . . . . . . Piercing Weapon . | . . . . . . Special Melee Weapon . | . . . . . . Unidentified Prototypes . | . . . . . . Parts Lost . | . . . . . . Power . | . . . . . . Propulsion . | . . . . . . Utility . | . . . . . . Weapon . | . . . . . . Highest Loss Streak . | . . . . . . Average Slot Usage (%) 88 | . 100 90 77 77 71 Engine 2 | . 7 . . . . Core 9 | . 6 12 11 11 9 Treads 24 | . 28 25 22 22 18 Device 12 | . 14 12 11 11 9 Processor 12 | . 14 12 11 11 9 Energy Gun 12 | . 14 12 11 11 9 Ballistic Gun 3 | . 10 . . . . Ballistic Cannon 8 | . 3 12 11 11 9 Naked Turns . | . . . . . . Heaviest Build 20 | 7 11 12 12 12 20 Greatest Support 40 | 40 40 40 40 40 40 Greatest Overweight (x) 1 | 1 . . . . . Average Overweight (x) . | . . . . . . Largest Inventory Capacity 4 | 4 4 4 4 4 4 Average Capacity 3 | 3 4 4 4 4 4 Most Carried 4 | 2 4 3 3 3 4 Average Carried 2 | 1 2 3 2 3 3 Final Capacity 4 | 4 4 4 4 4 4 Final Carried 4 | 2 3 3 3 3 4 Class Distribution -------------------- 89% | Mutant 10% | Skirmisher Dominant Class ---------------- Mutant | -10/Materials Mutant | -10/Mines Mutant | -10/Exiles Mutant | -9/Mines Skirmisher | -8/Materials Resources | -11 -10 -10 -10 -9 -8 ----------- Run | Scr Mat Min Exi Min Mat Matter Collected 894 | 321 296 117 16 76 68 Remotely . | . . . . . . Salvage Created 1326 | 245 589 230 . 142 120 Parts 91 | 18 36 15 . 14 8 Haulers Intercepted 1 | . . . . . 1 Recyclers Shooed 1 | . . . . 1 . Parts Field Recycled . | . . . . . . Retrieved Matter . | . . . . . . Parts Self-Destructed . | . . . . . . Prevented . | . . . . . . Kills | -11 -10 -10 -10 -9 -8 ------- Run | Scr Mat Min Exi Min Mat Combat Hostiles Destroyed 28 | . 16 5 . 6 1 Guns 22 | . 14 2 . 5 1 Cannons 6 | . 2 3 . 1 . Classes Destroyed 9 | 3 3 . . 1 2 Worker 4 | 2 . 1 . 1 . Builder 1 | . . . . . 1 Tunneler 6 | 5 . 1 . . . Hauler 1 | . . . . . 1 Recycler 4 | 1 1 2 . . . Watcher 4 | . 3 . . . 1 Swarmer 7 | . 2 3 . 2 . Grunt 20 | . 14 2 . 3 1 Duelist 1 | . . . . 1 . Best Kill Streak 4 | 2 4 2 . 2 2 Combat Bots Only 3 | . 3 2 . 2 1 Max Kills in Single Turn 1 | 1 1 1 . 1 1 Gunslinging . | . . . . . . Exploded . | . . . . . . Melee . | . . . . . . Uniques/NPCs Destroyed . | . . . . . . Combat | -11 -10 -10 -10 -9 -8 -------- Run | Scr Mat Min Exi Min Mat Damage Taken 937 | . 557 68 . 159 153 Core 752 | . 452 57 . 122 121 Absorbed by Shields . | . . . . . . Redirected to Core 574 | . 327 30 . 116 101 Core Remaining (%) 98 | 100 . . . 97 . Volleys Fired 131 | 19 65 18 . 15 14 Largest 4 | 2 2 2 . 2 4 Hottest 236 | 70 85 100 . 100 236 Shots Fired 263 | 38 129 36 . 30 30 Gun 189 | 38 110 18 . 15 8 Cannon 74 | . 19 18 . 15 22 Launcher . | . . . . . . Special . | . . . . . . Kinetic 131 | 19 65 18 . 15 14 Thermal 132 | 19 64 18 . 15 16 Explosive . | . . . . . . Electromagnetic . | . . . . . . Robot Hit Streak 65 | 12 30 28 . 53 65 Robot Miss Streak 3 | 1 3 . . . 1 Penetration Max . | . . . . . . Secondary Targets 1 | . 1 . . . . Max Gunslinging Chain 1 | . 1 . . . . Shots Hit Robots 201 | 27 98 28 . 25 23 Core Hits 77 | 12 38 10 . 10 7 Critical Hits 3 | . 1 1 . . 1 Critical Kills 1 | . . 1 . . . Critical Parts Destroyed 2 | . 1 . . . 1 Melee Attacks . | . . . . . . Impact . | . . . . . . Slashing . | . . . . . . Piercing . | . . . . . . Sneak Attacks . | . . . . . . Combat Hostiles . | . . . . . . Follow-up Attacks . | . . . . . . Damage Inflicted 2625 | 300 1118 421 . 398 388 Guns 1771 | 300 912 204 . 230 125 Cannons 852 | . 204 217 . 168 263 Explosions . | . . . . . . Melee . | . . . . . . Ramming 2 | . 2 . . . . Kinetic 1135 | 88 481 217 . 168 181 Thermal 1488 | 212 635 204 . 230 207 Explosive . | . . . . . . Electromagnetic . | . . . . . . Impact . | . . . . . . Slashing . | . . . . . . Piercing . | . . . . . . Highest Corruption 1 | . 1 1 1 1 . Average Corruption 1 | . 1 1 1 1 . Corruption Purged . | . . . . . . Effects 9 | . 3 1 . 5 . Message Errors 4 | . 2 . . 2 . Data Loss (minor) 2 | . . 1 . 1 . Targeting Errors 3 | . 1 . . 2 . Overload Shots . | . . . . . . Overflow Damage 29 | . . 29 . . . Projectiles 29 | . . 29 . . . Explosions . | . . . . . . Melee . | . . . . . . Knockbacks 13 | . 3 5 . 4 1 Impact . | . . . . . . Kinetic 13 | . 3 5 . 4 1 Secondary . | . . . . . . Self-Inflicted Damage . | . . . . . . Shots . | . . . . . . Rammed 2 | . 2 . . . . Targets Rammed 2 | . 2 . . . . Kicked . | . . . . . . Crushed . | . . . . . . Highest Temperature 458 | 80 224 111 . 225 458 Average Temperature 76 | 29 85 31 . 71 144 Received Heat Transfer 477 | . 354 33 . 36 54 Effects 4 | . . . . . 4 Shutdowns 2 | . . . . . 2 Matter Decay 2 | . . . . . 2 Siege Activations . | . . . . . . Robots Corrupted . | . . . . . . Combat Hostiles . | . . . . . . Parts Fried . | . . . . . . Impact Corruptions . | . . . . . . Robots Melted . | . . . . . . Combat Hostiles . | . . . . . . Parts Melted 8 | 1 2 1 . 3 1 Heat Transferred 4070 | 629 1887 555 . 555 444 Parts Sabotaged . | . . . . . . Parts Stolen . | . . . . . . Parts Stripped . | . . . . . . Power Chain Reactions . | . . . . . . Missiles Intercepted . | . . . . . . Alert | -11 -10 -10 -10 -9 -8 ------- Run | Scr Mat Min Exi Min Mat Peak Influence 189 | 40 157 123 . 189 88 Initial 22 | . 22 13 . . . Average 50 | 19 53 29 . 91 50 Maximum Alert Level . | . . . . . . Low Security (%) 100 | 100 100 100 . 100 100 Level 1 . | . . . . . . Level 2 . | . . . . . . Level 3 . | . . . . . . Level 4 . | . . . . . . Level 5 . | . . . . . . High Security . | . . . . . . Max Security . | . . . . . . Squads Dispatched 8 | . 6 . . . 2 Investigation 7 | . 6 . . . 1 Extermination . | . . . . . . Reinforcement 1 | . . . . . 1 Assault . | . . . . . . Garrison . | . . . . . . Intercept . | . . . . . . Construction Impeded 1 | . . . . . 1 Haulers Reinforced . | . . . . . . Stealth | -11 -10 -10 -10 -9 -8 --------- Run | Scr Mat Min Exi Min Mat Distress Signals 1 | . 1 . . . . Communications Jammed . | . . . . . . Distress Signals . | . . . . . . Times Spotted 43 | . 24 6 . 8 5 Peak Tracking Total 3 | . 3 3 . 3 3 Tactical Retreats 6 | . 4 1 . 1 . Traps | -11 -10 -10 -10 -9 -8 ------- Run | Scr Mat Min Exi Min Mat Traps Triggered 2 | . 2 . . . . Indirectly . | . . . . . . Trap Hack Attempts . | . . . . . . Triggered . | . . . . . . Disarmed . | . . . . . . Reprogrammed . | . . . . . . Reused . | . . . . . . Traps Extracted . | . . . . . . Installed . | . . . . . . Triggered . | . . . . . . Machines | -11 -10 -10 -10 -9 -8 ---------- Run | Scr Mat Min Exi Min Mat Machines Disabled . | . . . . . . Max in Single Turn . | . . . . . . Machines Sabotaged . | . . . . . . Garrisons Compromised . | . . . . . . Overloaded Fab Kills . | . . . . . . Fab Network Shutdowns . | . . . . . . Hacking | -11 -10 -10 -10 -9 -8 --------- Run | Scr Mat Min Exi Min Mat Machines Accessed 13 | . 8 . 4 . 1 Terminals 7 | . 6 . . . 1 Fabricators . | . . . . . . Repair Stations . | . . . . . . Recycling Units 2 | . 2 . . . . Scanalyzers . | . . . . . . Garrison Access . | . . . . . . Total Hacks 76 | . 32 . 41 . 3 Successful 60 | . 19 . 41 . . Failed 16 | . 13 . . . 3 Catastrophic 2 | . 2 . . . . Database Lockouts . | . . . . . . Manual 7 | . 7 . . . . Terminals 30 | . 27 . . . 3 Fabricators . | . . . . . . Repair Stations . | . . . . . . Recycling Units 5 | . 5 . . . . Scanalyzers . | . . . . . . Garrison Access . | . . . . . . Terminal Hacks 56 | . 15 . 41 . . Record 41 | . . . 41 . . Robot Analysis 2 | . 2 . . . . Prototype ID Bank 2 | . 2 . . . . Emergency Access Points 1 | . 1 . . . . Unreport Threat 3 | . 3 . . . . Locate Traps 1 | . 1 . . . . Dispatch Records 1 | . 1 . . . . Surveillance Status 1 | . 1 . . . . Hauler Manifests 2 | . 2 . . . . Zone Layout 2 | . 2 . . . . Fabricator Hacks . | . . . . . . Repair Station Hacks . | . . . . . . Recycling Unit Hacks 2 | . 2 . . . . Retrieve Components 2 | . 2 . . . . Scanalyzer . | . . . . . . Garrison Access Hacks . | . . . . . . Unauthorized Hacks 2 | . 2 . . . . Terminals . | . . . . . . Fabricators . | . . . . . . Repair Stations . | . . . . . . Recycling Units 2 | . 2 . . . . Reject 2 | . 2 . . . . Scanalyzers . | . . . . . . Garrison Access . | . . . . . . Data Cores Recovered . | . . . . . . Used . | . . . . . . Hacking Detections 8 | . 7 . . . 1 Full Trace Events 8 | . 7 . . . 1 Feedback Events 1 | . 1 . . . . Corruption 1 | . 1 . . . . Feedback Blocked . | . . . . . . Robot Schematics Acquired . | . . . . . . Robots Built . | . . . . . . Matter . | . . . . . . Time . | . . . . . . Total Robot Build Rating . | . . . . . . Part Schematics Acquired . | . . . . . . Parts Built . | . . . . . . Matter . | . . . . . . Time . | . . . . . . Total Part Build Rating . | . . . . . . Parts Repaired . | . . . . . . Time . | . . . . . . Parts Recycled . | . . . . . . Recycled Matter . | . . . . . . Retrieved Matter . | . . . . . . Retrieved Components 11 | . 11 . . . . Parts Scanalyzed . | . . . . . . Part Schematics Acquired . | . . . . . . Parts Damaged . | . . . . . . Bothacking | -11 -10 -10 -10 -9 -8 ------------ Run | Scr Mat Min Exi Min Mat Used RIF Installer . | . . . . . . Robots Hacked . | . . . . . . Non-combat . | . . . . . . Combat . | . . . . . . Robot Hacks Applied . | . . . . . . Relay Couplers Released . | . . . . . . Robots Rewired . | . . . . . . Allies Hacked . | . . . . . . Hacks Repelled . | . . . . . . Allies | -11 -10 -10 -10 -9 -8 -------- Run | Scr Mat Min Exi Min Mat Total Allies 4 | . . 1 . 3 . Largest Group 3 | . . 1 . 3 2 Highest-Rated Group 40 | . . 31 . 40 32 Highest-Rated Ally 31 | . . 31 . 16 16 Total Orders . | . . . . . . Ally Attacks 36 | . . . . 12 24 Total Damage 292 | . . . . 76 216 Kills 2 | . . . . 1 1 Allies Corrupted . | . . . . . . Allies Melted . | . . . . . . Intel | -11 -10 -10 -10 -9 -8 ------- Run | Scr Mat Min Exi Min Mat Robot Analysis Total 2 | . 2 . . . . Derelict Logs Recovered 5 | . . 3 . 2 . Drone Launches . | . . . . . . Drone Recoveries . | . . . . . . Exploration | -11 -10 -10 -10 -9 -8 ------------- Run | Scr Mat Min Exi Min Mat Turns Passed 3779 | 220 1338 872 653 567 129 Spaces Moved 2070 | 106 686 506 407 318 47 Core 14 | 14 . . . . . Treads 2056 | 92 686 506 407 318 47 Legs . | . . . . . . Wheels . | . . . . . . Hover . | . . . . . . Flight . | . . . . . . Fastest Speed 50 | 50 160 160 160 160 160 Average Speed 159 | 146 160 160 160 160 160 Slowest Speed 160 | 160 160 160 160 160 160 Overloaded Moves . | . . . . . . Propulsion Burnouts . | . . . . . . Robots Hopped . | . . . . . . Cave-ins Triggered . | . . . . . . Exploration Rate (%) 60 | 5 90 96 89 75 8 Regions Visited 5 Branch Regions 3 Pre-discovered Areas 2 | . . . 1 1 . Known Exits Taken 4 | . 1 1 1 1 . Unknown Exits Taken 1 | 1 . . . . . Scrap Searched 3 | . . 1 . 2 . Spaces Dug . | . . . . . . Terrain Destroyed . | . . . . . . Melee . | . . . . . . Projectile . | . . . . . . AOE . | . . . . . . Terrain Rammed . | . . . . . . Walls Destroyed . | . . . . . . Machines Disabled . | . . . . . . Actions | -11 -10 -10 -10 -9 -8 --------- Run | Scr Mat Min Exi Min Mat Total 2302 | 133 806 533 409 346 75 Wait 24 | . 16 . . 1 7 Move 2065 | 105 685 505 406 317 47 Hop . | . . . . . . Pick Up 8 | 2 4 . . 1 1 Fast Attach 13 | 7 2 1 1 . 2 Attach . | . . . . . . Detach 1 | . . . 1 . . Swap 5 | . 3 . . 2 . Drop 9 | . 6 1 1 1 . Fire 131 | 19 65 18 . 15 14 Melee . | . . . . . . Ram . | . . . . . . Kick . | . . . . . . Crush 2 | . 2 . . . . Escape Stasis . | . . . . . . Rewire . | . . . . . . Trap . | . . . . . . Miscellaneous 44 | . 23 8 . 9 4 Route ------- -11/Scrapyard -10/Materials (discovered 5 exits: *Mat x3 / *Min x2) -10/Mines (discovered 3 exits: *Mat x2 / *Exi) -10/Exiles (discovered 2 exits: *Min x2) -9/Mines (discovered 2 exits: *Mat x2) -8/Materials (discovered 2 exits: Fac x2) History --------- Turn | Location | Event 10 | -11/Scrapyard | Upgraded with Propulsion slot (x1) 10 | -11/Scrapyard | Upgraded with Utility slot (x1) 10 | -11/Scrapyard | Upgraded with Weapon slot (x1) 11 | -11/Scrapyard | Discovered new exit (range 15) 221 | -11/Scrapyard | Entered Materials 252 | -10/Materials | Discovered new exit (range 14) 305 | -10/Materials | Build established: Mutant 717 | -10/Materials | Discovered new exit (range 5) 728 | -10/Materials | Identified exit to Materials 1028 | -10/Materials | Discovered exit to Materials (range 6) 1071 | -10/Materials | Reached level 2 1297 | -10/Materials | Discovered new exit (range 8) 1432 | -10/Materials | Discovered exit to Materials (range 9) 1557 | -10/Materials | Identified exit to Mines 1559 | -10/Materials | Entered Mines 1660 | -10/Mines | Learned location of 1 exit from Materials 1673 | -10/Mines | Learned Materials trap positions 1731 | -10/Mines | Discovered exit to Materials (range 6) 1912 | -10/Mines | Reached level 3 2088 | -10/Mines | Upgraded with Utility slot (x2) 2107 | -10/Mines | Received a Mining Laser from a helpful Derelict 2110 | -10/Mines | Discovered exit to Materials (range 12) 2425 | -10/Mines | Deemed a non-threat by the Exiles lab entrance 2425 | -10/Mines | Discovered new exit (range 5) 2430 | -10/Mines | Identified exit to Exiles 2431 | -10/Mines | Entered Exiles 2457 | -10/Exiles | Discovered new exit (range 15) 2507 | -10/Exiles | Met 8R-AWN 2531 | -10/Exiles | Met EX-HEX 2626 | -10/Exiles | Met EX-DEC 2656 | -10/Exiles | Visited The Gauntlet 2831 | -10/Exiles | Learned location of Zion (-6) 2866 | -10/Exiles | Met EX-BIN 3071 | -10/Exiles | Discovered new exit (range 10) 3082 | -10/Exiles | Identified exit to Mines 3084 | -10/Exiles | Entered Mines 3087 | -9/Mines | Reached level 4 3142 | -9/Mines | Discovered new exit (range 9) 3146 | -9/Mines | Learned location of 1 exit from Materials 3254 | -9/Mines | Assisted by bots powering up and referring to "LRC-V3" 3402 | -9/Mines | Learned location of Storage (-9) 3506 | -9/Mines | YI-UF0 nonchalantly dropped a Grenade Launcher on the ground 3524 | -9/Mines | Learned Materials emergency access door positions 3568 | -9/Mines | Discovered new exit (range 12) 3584 | -9/Mines | Identified exit to Materials 3651 | -9/Mines | Entered Materials 3651 | -8/Materials | Accompanied by 2 allies 3652 | -8/Materials | Identified exit to Factory 3653 | -8/Materials | Loaded intel: 9 trap records 3653 | -8/Materials | Reached level 5 3653 | -8/Materials | Reached level 6 3655 | -8/Materials | Upgraded with Weapon slot (x2) 3685 | -8/Materials | Reached level 7 3702 | -8/Materials | Build established: Skirmisher 3780 | -8/Materials | Self-destructed Last Messages --------------- A-02 Transporter destroyed. R-06 Scavenger collects Adv. Beam Cannon. R-06 Scavenger collects Lgt. Treads. Acquired Prototype Energy Gun. R-06 Scavenger collects Prototype Energy Gun. Acquired Adv. Beam Cannon. Acquired 29 matter. U-05 Engineer destroyed. U-05 Engineer builds a Door. W-25 Informer knocked back. W-25 Informer suffers critical hit. Destroyed Imp. Hover Unit. W-25 Informer destroyed. Power failure, Lgt. Nuclear Core shutdown. Overheating: Matter decay (-34). Power failure, Lgt. Nuclear Core shutdown. Overheating: Matter decay (-30). Connecting with Terminal... ALERT: Suspicious activity at Terminal M011. Dispatching Investigation squad. Map ----- +----------------------------------------------------+ | ??###### # # """ # ???????????????? | | ?##?###? # # """"" # ? ????????????????? | | ????#######+### # """"" # ????????????????? | | ???##?## # """"" # ????????????????? | | ??###### + """ # ????????????????? | | ????#### # # ???????????????? | | ???##### #### # ! # ? ?????????????? | | ??###### #### # # #????????????? | | ??###### ?### # # #????????????? | | ???##### #### ####################???????????? | | ??###### #### #################???#??????????? | | ???##### #### #################?##?#?????????? | | ?#?##### #### ################?##?###????????? | | ?##?#### ### ######################????????? | | ?###?### ### %[! ^^ ????????? | | ######## ### x ^^ #????????? | | ?#?##?#? ### = !| x ^ #????????? | | ? ? ?## ### #####+#############/##????????? | | ?? ### ########## *%! *%###### ?? ?????????? | | ?? ? ? ########## + + ""? ????????? | | ?? ####+########?## ! ###### """?????????? | | ???? #? ####### t ######?"""?????????? | | ??#?## ? """ ####### g ] ###### ????????? | | ?????# ? "R" ####### g ###?#? ?"" ????????? | | ????#? " " ####### ###### ?""?????????? | | ??????? ####### @ ####?# "?" ????????? | | ?????#??"?"" #########""T""#####?## ??????????? | | ?????????""" #########"""""##?###?# ????????????? | | ???????""?"" #####################? ??"?????????? | | ?????????? ?#################?####?""??????????? | | ???????????#?###############?####?##? ???????????? | | ????????????#?#????##?#############????+?????????? | | ????????????#?#???#?####?###?#####????? ?????????? | | ???????????????#?#?#?##???####???##??#???????????? | | ???????????? ??###??##?#?#?####????????+?????????? | | ?????????????? ?#?????????#??????#? ?????????????? | | ???????????????????###?##?????????? ?????????????? | | ???????????????????#??#?###??????????????????????? | | ?????????????????????#??????##???????????????????? | | ?????????????????????????????????????????????????? | | ????????????????????#????????????????????????????? | | ?????????????????????????????????????????????????? | | ?????????????????????????????????????????????????? | | ?????????????????????????????????????????????????? | | ?????????????????????????????????????????????????? | | ?????????????????????????????????????????????????? | | ?????????????????????????????????????????????????? | | ?????????????????????????????????????????????????? | | ?????????????????????????????????????????????????? | | ?????????????????????????????????????????????????? | +----------------------------------------------------+ Best States ------------- Heat Dissipation 25 Energy Generation 14 Energy Capacity 250 Matter Stores 300 Matter Capacity 300 Sight Range 18 Robot Scan Range 22 Terrain Scan Range 16 Terrain Scan Density 410 Resistance: KI 20 Resistance: TH 20 Resistance: EX 20 Resistance: EM 20 Resistance: I 20 Resistance: S 20 Resistance: P 20 Evasion (%) 50 Recoil Reduction 2 Offensive Hacking 10 Item Schematics ----------------- None Robot Schematics ------------------ None Fabricated ------------ Nothing Alien Tech Used ----------------- None Achievements -------------- None Challenges ------------ None RPGLIKE | -11 -10 -10 -10 -9 -8 --------- Run | Scr Mat Min Exi Min Mat Levels Raised 6 | . 1 1 . 1 3 XP Earned 13186 | 4000 2445 1175 200 1641 3725 XP Spent 11490 | 4000 . 2800 . 1640 3050 Upgrades 31 | 7 . 4 . 12 8 Propulsion Slot 1 | 1 . . . . . Utility Slot 3 | 1 . 2 . . . Weapon Slot 3 | 1 . . . . 2 Core Integrity 1 | . . . . . 1 Inventory Capacity 4 | 4 . . . . . Sight Range 2 | . . . . 2 . Sensor Range 11 | . . . . 8 3 Terrain Scan Density 4 | . . . . 2 2 Ranged Accuracy 2 | . . 2 . . . Protomatter Created 358 | . 234 54 . 70 . Integrity Restored 841 | . 445 159 . 162 75 Core 690 | . 364 145 . 106 75 Parts 151 | . 81 14 . 56 . Protomatter Decayed 93 | . 80 . . 13 . Game ------ Seed DeepBottomlessFlail Manual? 0 Play Time 00:22:00 Cumulative 32.5 hours Start 2022.01.08 @ 02:00:55 End 2022.01.08 @ 14:39:47 Sessions 3 Manual Loads 0 Difficulty Adventurer Special Mode Winter2019/RPGLIKE Game No. 51 Rogue 0 Adventurer 51 Explorer 0 Win Type - Total 0 Types 0/0/0/0/0/0/0/0/0 Lore% 51 Gallery% 58 Achievement% 32 Wizard Run 0 Options --------- ASCII 0 Keyboard 0 Movement Mouse Keybinds 0 Fullscreen 1 Font 18/SmallcapsGlow Map View 76x50 Tactical HUD 0 Map Filters NONE Filters NONE Steam 1 RUN: d9d345ca-03b8-4a81-991c-bfe8c1919905